[Event "January 9 Late 2024"]
[Site "https://www.chess.com"]
[Date "2024.01.09"]
[Round "1"]
[White "Kostiukov, Alexandr"]
[Black "Janaszak, Dawid"]
[Result "0-1"]
[Board "177"]
[TimeControl "180+1"]
[WhiteFideId "14108100"]
[BlackFideId "1119206"]
[WhiteElo "2291"]
[BlackElo "2637"]
[WhiteTeam "UKR"]
[BlackTeam "POL"]
[WhiteClock "0:00:00"]
[BlackClock "0:00:46"]

1. g3 {[%clk 0:02:52]}  c5 {[%clk 0:02:58]} 2. Bg2 {[%clk 0:02:52]}  Nc6 {[%clk 0:02:58]} 3. c4 {[%clk 0:02:52]}  g6 {[%clk 0:02:59]} 4. Nf3 {[%clk 0:02:53]}  Bg7 {[%clk 0:02:59]} 5. O-O {[%clk 0:02:53]}  Nf6 {[%clk 0:02:58]} 6. d4 {[%clk 0:02:53]}  cxd4 {[%clk 0:02:57]} 7. Nxd4 {[%clk 0:02:54]}  O-O {[%clk 0:02:57]} 8. c5 {[%clk 0:02:47]}  Qa5 {[%clk 0:02:39]} 9. Nb3 {[%clk 0:02:47]}  Qa6 {[%clk 0:02:39]} 10. Nc3 {[%clk 0:02:43]}  b6 {[%clk 0:02:39]} 11. cxb6 {[%clk 0:02:36]}  axb6 {[%clk 0:02:40]} 12. e4 {[%clk 0:02:32]}  Bb7 {[%clk 0:02:35]} 13. h3 {[%clk 0:02:00]}  d6 {[%clk 0:02:33]} 14. Be3 {[%clk 0:01:56]}  Ne5 {[%clk 0:02:29]} 15. Kh2 {[%clk 0:01:50]}  Nc4 {[%clk 0:02:27]} 16. Bc1 {[%clk 0:01:48]}  Nd7 {[%clk 0:02:27]} 17. Re1 {[%clk 0:01:31]}  e6 {[%clk 0:02:25]} 18. Bf1 {[%clk 0:01:25]}  b5 {[%clk 0:02:25]} 19. a4 {[%clk 0:01:13]}  b4 {[%clk 0:02:11]} 20. Nb5 {[%clk 0:00:51]}  d5 {[%clk 0:02:11]} 21. exd5 {[%clk 0:00:47]}  exd5 {[%clk 0:02:12]} 22. Nc7 {[%clk 0:00:42]}  Qb6 {[%clk 0:02:01]} 23. Nxa8 {[%clk 0:00:42]}  Qxf2+ {[%clk 0:02:02]} 24. Bg2 {[%clk 0:00:39]}  Bxa8 {[%clk 0:01:56]} 25. Re2 {[%clk 0:00:33]}  Qb6 {[%clk 0:01:56]} 26. a5 {[%clk 0:00:31]}  Qb5 {[%clk 0:01:53]} 27. Nd4 {[%clk 0:00:27]}  Qc5 {[%clk 0:01:52]} 28. Nb3 {[%clk 0:00:22]}  Qb5 {[%clk 0:01:52]} 29. Bf4 {[%clk 0:00:21]}  Nxb2 {[%clk 0:01:48]} 30. Qf1 {[%clk 0:00:13]}  Nc4 {[%clk 0:01:43]} 31. Rb1 {[%clk 0:00:12]}  Nxa5 {[%clk 0:01:39]} 32. Nxa5 {[%clk 0:00:12]}  Qxa5 {[%clk 0:01:40]} 33. Re7 {[%clk 0:00:11]}  Nf6 {[%clk 0:01:37]} 34. Bd6 {[%clk 0:00:11]}  b3 {[%clk 0:01:16]} 35. Rxb3 {[%clk 0:00:09]}  Qa2 {[%clk 0:01:15]} 36. Rb8 {[%clk 0:00:07]}  d4 {[%clk 0:01:09]} 37. Ra7 {[%clk 0:00:06]}  Qxa7 {[%clk 0:01:06]} 38. Rxf8+ {[%clk 0:00:05]}  Bxf8 {[%clk 0:01:05]} 39. Bxf8 {[%clk 0:00:06]}  Bxg2 {[%clk 0:00:59]} 40. Kxg2 {[%clk 0:00:07]}  Qb7+ {[%clk 0:00:52]} 41. Kh2 {[%clk 0:00:06]}  Ne4 {[%clk 0:00:49]} 42. Bh6 {[%clk 0:00:06]}  Qb2+ {[%clk 0:00:49]} 43. Qg2 {[%clk 0:00:06]}  Qxg2+ {[%clk 0:00:46]} 44. Kxg2 {[%clk 0:00:07]}  f5 {[%clk 0:00:46]} 45. Bf4 {[%clk 0:00:04]}  Kf7 {[%clk 0:00:46]} 46. g4 {[%clk 0:00:04]}  Ke6 {[%clk 0:00:46]} 47. gxf5+ {[%clk 0:00:03]}  gxf5 {[%clk 0:00:46]} 48. Kf3 {[%clk 0:00:03]}  Kd5 {[%clk 0:00:46]} 49. Ke2 {[%clk 0:00:03]}  Kc4 {[%clk 0:00:46]} 50. h4 {[%clk 0:00:03]}  d3+ {[%clk 0:00:47]} 51. Kd1 {[%clk 0:00:03]}  Nc3+ {[%clk 0:00:47]} 52. Kd2 {[%clk 0:00:04]}  Ne4+ {[%clk 0:00:47]} 53. Ke3 {[%clk 0:00:03]}  Kc3 {[%clk 0:00:47]} 54. Be5+ {[%clk 0:00:00]}  Kc2 {[%clk 0:00:46]} 0-1

[Event "January 9 Late 2024"]
[Site "https://www.chess.com"]
[Date "2024.01.09"]
[Round "1"]
[White "Lopez Del Alamo, Antonio"]
[Black "Bressac, Stephane"]
[Result "0-1"]
[Board "179"]
[TimeControl "180+1"]
[WhiteFideId "2227339"]
[BlackFideId "655945"]
[WhiteElo "2287"]
[BlackElo "2633"]
[WhiteTeam "ESP"]
[BlackTeam "FRA"]
[WhiteClock "0:00:08"]
[BlackClock "0:01:17"]

1. e4 {[%clk 0:02:57]}  d6 {[%clk 0:02:55]} 2. d4 {[%clk 0:02:56]}  Nf6 {[%clk 0:02:55]} 3. Nc3 {[%clk 0:02:56]}  e5 {[%clk 0:02:55]} 4. Nf3 {[%clk 0:02:55]}  Nbd7 {[%clk 0:02:54]} 5. Bc4 {[%clk 0:02:55]}  exd4 {[%clk 0:02:54]} 6. Qxd4 {[%clk 0:02:52]}  Be7 {[%clk 0:02:53]} 7. Be3 {[%clk 0:02:35]}  Nb6 {[%clk 0:02:52]} 8. Be2 {[%clk 0:02:24]}  O-O {[%clk 0:02:50]} 9. h3 {[%clk 0:02:22]}  c6 {[%clk 0:02:39]} 10. O-O-O {[%clk 0:02:20]}  d5 {[%clk 0:02:38]} 11. exd5 {[%clk 0:02:15]}  Nfxd5 {[%clk 0:02:36]} 12. Nxd5 {[%clk 0:02:14]}  Nxd5 {[%clk 0:02:37]} 13. c4 {[%clk 0:01:53]}  Nb6 {[%clk 0:02:20]} 14. Qxd8 {[%clk 0:01:45]}  Bxd8 {[%clk 0:02:21]} 15. b3 {[%clk 0:01:40]}  Nd7 {[%clk 0:02:15]} 16. Rd2 {[%clk 0:01:33]}  Bb6 {[%clk 0:02:11]} 17. Bxb6 {[%clk 0:01:32]}  axb6 {[%clk 0:02:12]} 18. Kb2 {[%clk 0:01:31]}  Nc5 {[%clk 0:02:10]} 19. Rhd1 {[%clk 0:01:28]}  Re8 {[%clk 0:02:09]} 20. Rd8 {[%clk 0:01:24]}  Bf5 {[%clk 0:02:05]} 21. Rxa8 {[%clk 0:01:24]}  Rxa8 {[%clk 0:02:06]} 22. Nd4 {[%clk 0:01:16]}  Bd7 {[%clk 0:02:05]} 23. Bg4 {[%clk 0:01:08]}  Bxg4 {[%clk 0:02:03]} 24. hxg4 {[%clk 0:01:09]}  Rd8 {[%clk 0:01:58]} 25. Kc2 {[%clk 0:01:01]}  g6 {[%clk 0:01:58]} 26. f3 {[%clk 0:00:50]}  Ra8 {[%clk 0:01:51]} 27. Kb2 {[%clk 0:00:47]}  Rd8 {[%clk 0:01:52]} 28. Kc2 {[%clk 0:00:46]}  Kf8 {[%clk 0:01:52]} 29. Ne2 {[%clk 0:00:43]}  Ra8 {[%clk 0:01:50]} 30. Kb2 {[%clk 0:00:41]}  Re8 {[%clk 0:01:51]} 31. Ng3 {[%clk 0:00:38]}  Re5 {[%clk 0:01:42]} 32. Kc3 {[%clk 0:00:37]}  h5 {[%clk 0:01:39]} 33. gxh5 {[%clk 0:00:34]}  gxh5 {[%clk 0:01:40]} 34. Rh1 {[%clk 0:00:27]}  Rg5 {[%clk 0:01:39]} 35. Nxh5 {[%clk 0:00:22]}  Rxg2 {[%clk 0:01:39]} 36. Nf6 {[%clk 0:00:17]}  Ke7 {[%clk 0:01:40]} 37. Ne4 {[%clk 0:00:16]}  Nxe4+ {[%clk 0:01:37]} 38. fxe4 {[%clk 0:00:17]}  Rxa2 {[%clk 0:01:37]} 39. Re1 {[%clk 0:00:16]}  Ra5 {[%clk 0:01:36]} 40. b4 {[%clk 0:00:16]}  Re5 {[%clk 0:01:36]} 41. Kd4 {[%clk 0:00:15]}  Ke6 {[%clk 0:01:36]} 42. Rh1 {[%clk 0:00:15]}  c5+ {[%clk 0:01:36]} 43. bxc5 {[%clk 0:00:14]}  bxc5+ {[%clk 0:01:37]} 44. Kd3 {[%clk 0:00:13]}  Rg5 {[%clk 0:01:37]} 45. Rh6+ {[%clk 0:00:13]}  f6 {[%clk 0:01:38]} 46. Rh7 {[%clk 0:00:13]}  Rg3+ {[%clk 0:01:39]} 47. Ke2 {[%clk 0:00:13]}  Rb3 {[%clk 0:01:38]} 48. Rc7 {[%clk 0:00:12]}  Kd6 {[%clk 0:01:38]} 49. Rf7 {[%clk 0:00:12]}  Ke5 {[%clk 0:01:34]} 50. Re7+ {[%clk 0:00:11]}  Kd4 {[%clk 0:01:34]} 51. Re6 {[%clk 0:00:11]}  Kxc4 {[%clk 0:01:31]} 52. Rxf6 {[%clk 0:00:11]}  Kd4 {[%clk 0:01:32]} 53. Re6 {[%clk 0:00:10]}  Re3+ {[%clk 0:01:31]} 54. Kd2 {[%clk 0:00:11]}  Rxe4 {[%clk 0:01:31]} 55. Rb6 {[%clk 0:00:11]}  Re7 {[%clk 0:01:30]} 56. Kc2 {[%clk 0:00:11]}  c4 {[%clk 0:01:26]} 57. Kd2 {[%clk 0:00:11]}  Kc5 {[%clk 0:01:26]} 58. Rb1 {[%clk 0:00:10]}  b5 {[%clk 0:01:26]} 59. Rh1 {[%clk 0:00:09]}  Rd7+ {[%clk 0:01:24]} 60. Kc2 {[%clk 0:00:09]}  Rg7 {[%clk 0:01:24]} 61. Kc1 {[%clk 0:00:09]}  c3 {[%clk 0:01:23]} 62. Kb1 {[%clk 0:00:09]}  b4 {[%clk 0:01:21]} 63. Kc1 {[%clk 0:00:10]}  Kc4 {[%clk 0:01:21]} 64. Kb1 {[%clk 0:00:10]}  Ra7 {[%clk 0:01:20]} 65. Rg1 {[%clk 0:00:09]}  Kb3 {[%clk 0:01:20]} 66. Rf1 {[%clk 0:00:08]}  c2+ {[%clk 0:01:17]} 0-1

[Event "January 9 Late 2024"]
[Site "https://www.chess.com"]
[Date "2024.01.10"]
[Round "1"]
[White "Domalchuk-Jonasson, Aleksandr"]
[Black "Kargosha, Bahman"]
[Result "0-1"]
[Board "180"]
[TimeControl "180+1"]
[WhiteFideId "14142805"]
[BlackFideId "12503452"]
[WhiteElo "2632"]
[BlackElo "2285"]
[WhiteTeam "ISL"]
[BlackTeam "AUS"]
[WhiteClock "0:00:12"]
[BlackClock "0:00:09"]

1. Nf3 {[%clk 0:03:00]}  Nc6 {[%clk 0:02:59]} 2. d4 {[%clk 0:03:00]}  d5 {[%clk 0:02:59]} 3. c4 {[%clk 0:03:01]}  Bg4 {[%clk 0:02:59]} 4. cxd5 {[%clk 0:03:00]}  Bxf3 {[%clk 0:02:58]} 5. dxc6 {[%clk 0:02:59]}  Bxc6 {[%clk 0:02:58]} 6. Nc3 {[%clk 0:02:59]}  Nf6 {[%clk 0:02:53]} 7. Bg5 {[%clk 0:02:57]}  Ne4 {[%clk 0:02:33]} 8. Nxe4 {[%clk 0:02:53]}  Bxe4 {[%clk 0:02:34]} 9. f3 {[%clk 0:02:54]}  Bc6 {[%clk 0:02:31]} 10. e4 {[%clk 0:02:53]}  h6 {[%clk 0:02:31]} 11. Bh4 {[%clk 0:02:48]}  g5 {[%clk 0:02:32]} 12. Bf2 {[%clk 0:02:48]}  Bg7 {[%clk 0:02:32]} 13. Bc4 {[%clk 0:02:41]}  e6 {[%clk 0:02:27]} 14. h4 {[%clk 0:02:36]}  Qe7 {[%clk 0:02:19]} 15. Qb3 {[%clk 0:02:14]}  O-O-O {[%clk 0:01:59]} 16. O-O-O {[%clk 0:02:14]}  b6 {[%clk 0:01:41]} 17. a4 {[%clk 0:02:10]}  a5 {[%clk 0:01:39]} 18. Kb1 {[%clk 0:01:56]}  Qb4 {[%clk 0:01:28]} 19. Qc2 {[%clk 0:01:49]}  Bxa4 {[%clk 0:01:24]} 20. b3 {[%clk 0:01:48]}  Bc6 {[%clk 0:00:54]} 21. Be1 {[%clk 0:01:25]}  Qd6 {[%clk 0:00:47]} 22. Bc3 {[%clk 0:01:18]}  Bb7 {[%clk 0:00:33]} 23. g4 {[%clk 0:01:02]}  Kb8 {[%clk 0:00:33]} 24. Rd2 {[%clk 0:00:59]}  Qf4 {[%clk 0:00:30]} 25. Rd3 {[%clk 0:00:54]}  gxh4 {[%clk 0:00:30]} 26. Rxh4 {[%clk 0:00:53]}  e5 {[%clk 0:00:21]} 27. d5 {[%clk 0:00:48]}  h5 {[%clk 0:00:16]} 28. Bd2 {[%clk 0:00:40]}  Qf6 {[%clk 0:00:12]} 29. g5 {[%clk 0:00:32]}  Qe7 {[%clk 0:00:11]} 30. Bc1 {[%clk 0:00:28]}  f6 {[%clk 0:00:11]} 31. Qg2 {[%clk 0:00:26]}  fxg5 {[%clk 0:00:11]} 32. Bxg5 {[%clk 0:00:27]}  Bf6 {[%clk 0:00:12]} 33. Bxf6 {[%clk 0:00:24]}  Qxf6 {[%clk 0:00:12]} 34. Qh2 {[%clk 0:00:22]}  Qg5 {[%clk 0:00:11]} 35. Rd1 {[%clk 0:00:18]}  Rdg8 {[%clk 0:00:11]} 36. d6 {[%clk 0:00:18]}  cxd6 {[%clk 0:00:11]} 37. Bxg8 {[%clk 0:00:18]}  Rxg8 {[%clk 0:00:11]} 38. Rxh5 {[%clk 0:00:19]}  Qe3 {[%clk 0:00:11]} 39. Qc2 {[%clk 0:00:10]}  Qxf3 {[%clk 0:00:11]} 40. Rh2 {[%clk 0:00:09]}  Bxe4 {[%clk 0:00:11]} 41. Rf2 {[%clk 0:00:04]}  Bxc2+ {[%clk 0:00:10]} 42. Rxc2 {[%clk 0:00:05]}  Qxb3+ {[%clk 0:00:10]} 43. Kc1 {[%clk 0:00:06]}  Qa3+ {[%clk 0:00:10]} 44. Kb1 {[%clk 0:00:06]}  Rg3 {[%clk 0:00:10]} 45. Rb2 {[%clk 0:00:05]}  Rb3 {[%clk 0:00:10]} 46. Rxb3 {[%clk 0:00:04]}  Qxb3+ {[%clk 0:00:10]} 47. Kc1 {[%clk 0:00:05]}  d5 {[%clk 0:00:10]} 48. Rd2 {[%clk 0:00:05]}  d4 {[%clk 0:00:09]} 49. Rh2 {[%clk 0:00:06]}  Qc3+ {[%clk 0:00:09]} 50. Kb1 {[%clk 0:00:06]}  Qe1+ {[%clk 0:00:09]} 51. Kc2 {[%clk 0:00:05]}  Qc3+ {[%clk 0:00:09]} 52. Kb1 {[%clk 0:00:06]}  d3 {[%clk 0:00:09]} 53. Rh8+ {[%clk 0:00:03]}  Kb7 {[%clk 0:00:09]} 54. Rh7+ {[%clk 0:00:04]}  Ka6 {[%clk 0:00:09]} 55. Rh1 {[%clk 0:00:05]}  d2 {[%clk 0:00:09]} 56. Rd1 {[%clk 0:00:04]}  Qb3+ {[%clk 0:00:09]} 57. Ka1 {[%clk 0:00:05]}  Qxd1+ {[%clk 0:00:10]} 58. Kb2 {[%clk 0:00:05]}  Qc1+ {[%clk 0:00:10]} 59. Ka2 {[%clk 0:00:05]}  Qc2+ {[%clk 0:00:10]} 60. Ka3 {[%clk 0:00:06]}  Qc3+ {[%clk 0:00:09]} 61. Ka2 {[%clk 0:00:07]}  Qc4+ {[%clk 0:00:09]} 62. Ka3 {[%clk 0:00:08]}  Qb4+ {[%clk 0:00:09]} 63. Ka2 {[%clk 0:00:08]}  Qa4+ {[%clk 0:00:09]} 64. Kb2 {[%clk 0:00:09]}  d1=N+ {[%clk 0:00:08]} 65. Kc1 {[%clk 0:00:08]}  Ne3 {[%clk 0:00:07]} 66. Kd2 {[%clk 0:00:09]}  Qc2+ {[%clk 0:00:08]} 67. Kxe3 {[%clk 0:00:09]}  a4 {[%clk 0:00:08]} 68. Kf3 {[%clk 0:00:09]}  a3 {[%clk 0:00:08]} 69. Ke3 {[%clk 0:00:10]}  a2 {[%clk 0:00:09]} 70. Kf3 {[%clk 0:00:11]}  a1=Q {[%clk 0:00:09]} 71. Ke3 {[%clk 0:00:12]}  Qa3# {[%clk 0:00:09]} 0-1

[Event "January 9 Late 2024"]
[Site "https://www.chess.com"]
[Date "2024.01.09"]
[Round "1"]
[White "Xhembulla, Aleksander"]
[Black "Dilmukhametov, Artur"]
[Result "1-0"]
[Board "182"]
[TimeControl "180+1"]
[WhiteFideId "4705114"]
[BlackFideId "24179922"]
[WhiteElo "2631"]
[BlackElo "2283"]
[WhiteTeam "ALB"]
[BlackTeam "RUS"]
[WhiteClock "0:02:03"]
[BlackClock "0:01:53"]

1. e4 {[%clk 0:02:58]}  e6 {[%clk 0:03:00]} 2. d4 {[%clk 0:02:57]}  d5 {[%clk 0:03:00]} 3. Nd2 {[%clk 0:02:58]}  Nf6 {[%clk 0:03:01]} 4. e5 {[%clk 0:02:57]}  Nfd7 {[%clk 0:03:01]} 5. Bd3 {[%clk 0:02:58]}  c5 {[%clk 0:03:02]} 6. c3 {[%clk 0:02:59]}  Nc6 {[%clk 0:03:03]} 7. Ne2 {[%clk 0:02:59]}  cxd4 {[%clk 0:03:03]} 8. cxd4 {[%clk 0:03:00]}  f6 {[%clk 0:03:04]} 9. exf6 {[%clk 0:03:01]}  Nxf6 {[%clk 0:03:04]} 10. Nf3 {[%clk 0:03:01]}  Bd6 {[%clk 0:03:05]} 11. O-O {[%clk 0:03:01]}  O-O {[%clk 0:03:05]} 12. Bf4 {[%clk 0:03:02]}  Bxf4 {[%clk 0:03:05]} 13. Nxf4 {[%clk 0:03:03]}  Ne4 {[%clk 0:03:05]} 14. Ne2 {[%clk 0:03:03]}  Rxf3 {[%clk 0:03:05]} 15. gxf3 {[%clk 0:03:04]}  Ng5 {[%clk 0:03:05]} 16. f4 {[%clk 0:03:04]}  Nh3+ {[%clk 0:03:04]} 17. Kg2 {[%clk 0:02:53]}  Qh4 {[%clk 0:03:05]} 18. f5 {[%clk 0:02:53]}  exf5 {[%clk 0:02:51]} 19. f4 {[%clk 0:02:47]}  Qg4+ {[%clk 0:02:30]} 20. Kh1 {[%clk 0:02:33]}  Be6 {[%clk 0:02:28]} 21. Ng3 {[%clk 0:02:30]}  Qxd1 {[%clk 0:02:14]} 22. Raxd1 {[%clk 0:02:31]}  Nxd4 {[%clk 0:02:12]} 23. Kg2 {[%clk 0:02:11]}  g5 {[%clk 0:02:02]} 24. Kxh3 {[%clk 0:02:10]}  g4+ {[%clk 0:02:01]} 25. Kg2 {[%clk 0:02:10]}  Rf8 {[%clk 0:02:01]} 26. Rfe1 {[%clk 0:02:05]}  Bd7 {[%clk 0:02:00]} 27. Bc4 {[%clk 0:02:04]}  dxc4 {[%clk 0:01:57]} 28. Rxd4 {[%clk 0:02:03]}  Bc6+ {[%clk 0:01:57]} 29. Kf2 {[%clk 0:02:04]}  b5 {[%clk 0:01:53]} 30. Re5 {[%clk 0:02:03]} 1-0

[Event "January 9 Late 2024"]
[Site "https://www.chess.com"]
[Date "2024.01.09"]
[Round "1"]
[White "Coelho, Ramyres Santana"]
[Black "Kozin, Yuri"]
[Result "0-1"]
[Board "183"]
[TimeControl "180+1"]
[WhiteFideId "2120690"]
[BlackFideId "4129920"]
[WhiteElo "2274"]
[BlackElo "2627"]
[WhiteTeam "BRA"]
[BlackTeam "RUS"]
[WhiteClock "0:00:59"]
[BlackClock "0:02:14"]

1. e4 {[%clk 0:03:00]}  c5 {[%clk 0:02:59]} 2. Nf3 {[%clk 0:02:59]}  e6 {[%clk 0:02:59]} 3. d4 {[%clk 0:02:59]}  cxd4 {[%clk 0:03:00]} 4. c3 {[%clk 0:02:59]}  Nf6 {[%clk 0:02:59]} 5. e5 {[%clk 0:02:59]}  Nd5 {[%clk 0:02:59]} 6. cxd4 {[%clk 0:02:59]}  d6 {[%clk 0:03:00]} 7. Nc3 {[%clk 0:02:59]}  Nxc3 {[%clk 0:03:00]} 8. bxc3 {[%clk 0:03:00]}  Qc7 {[%clk 0:03:01]} 9. Bd2 {[%clk 0:02:59]}  Nd7 {[%clk 0:03:01]} 10. exd6 {[%clk 0:02:58]}  Bxd6 {[%clk 0:03:02]} 11. Bd3 {[%clk 0:02:59]}  b6 {[%clk 0:03:01]} 12. Qe2 {[%clk 0:02:59]}  Bb7 {[%clk 0:03:01]} 13. O-O {[%clk 0:02:59]}  O-O {[%clk 0:02:58]} 14. h4 {[%clk 0:02:32]}  Bf4 {[%clk 0:02:55]} 15. Be4 {[%clk 0:02:14]}  Bxe4 {[%clk 0:02:48]} 16. Qxe4 {[%clk 0:02:08]}  Bxd2 {[%clk 0:02:48]} 17. Nxd2 {[%clk 0:02:07]}  Qxc3 {[%clk 0:02:47]} 18. Nf3 {[%clk 0:02:04]}  Nf6 {[%clk 0:02:47]} 19. Qf4 {[%clk 0:02:03]}  Rac8 {[%clk 0:02:35]} 20. g4 {[%clk 0:02:01]}  Qd3 {[%clk 0:02:28]} 21. g5 {[%clk 0:01:55]}  Nd5 {[%clk 0:02:24]} 22. Qg3 {[%clk 0:01:50]}  Rc3 {[%clk 0:02:23]} 23. Kg2 {[%clk 0:01:48]}  Qf5 {[%clk 0:02:23]} 24. Rac1 {[%clk 0:01:40]}  Nf4+ {[%clk 0:02:22]} 25. Kh2 {[%clk 0:01:40]}  Rxc1 {[%clk 0:02:15]} 26. Rxc1 {[%clk 0:00:59]}  Ne2 {[%clk 0:02:14]} 0-1

[Event "January 9 Late 2024"]
[Site "https://www.chess.com"]
[Date "2024.01.09"]
[Round "1"]
[White "Kavyev, Ruslan"]
[Black "Kujawski, Adam"]
[Result "1-0"]
[Board "184"]
[TimeControl "180+1"]
[WhiteFideId "34110981"]
[BlackFideId "1100920"]
[WhiteElo "2625"]
[BlackElo "2273"]
[WhiteTeam "RUS"]
[BlackTeam "POL"]
[WhiteClock "0:01:49"]
[BlackClock "0:00:14"]

1. d4 {[%clk 0:03:00]}  Nf6 {[%clk 0:02:59]} 2. c4 {[%clk 0:03:01]}  e6 {[%clk 0:02:59]} 3. g3 {[%clk 0:03:01]}  c5 {[%clk 0:02:58]} 4. Nf3 {[%clk 0:03:01]}  cxd4 {[%clk 0:02:57]} 5. Nxd4 {[%clk 0:03:02]}  d5 {[%clk 0:02:57]} 6. Bg2 {[%clk 0:03:02]}  e5 {[%clk 0:02:57]} 7. Nf3 {[%clk 0:03:02]}  d4 {[%clk 0:02:57]} 8. O-O {[%clk 0:03:03]}  Nc6 {[%clk 0:02:57]} 9. e3 {[%clk 0:03:03]}  a5 {[%clk 0:02:44]} 10. exd4 {[%clk 0:02:57]}  exd4 {[%clk 0:02:45]} 11. Re1+ {[%clk 0:02:53]}  Be7 {[%clk 0:02:45]} 12. Bf4 {[%clk 0:02:50]}  O-O {[%clk 0:02:41]} 13. Ne5 {[%clk 0:02:48]}  Nxe5 {[%clk 0:02:29]} 14. Bxe5 {[%clk 0:02:49]}  d3 {[%clk 0:02:02]} 15. Nc3 {[%clk 0:02:46]}  Bg4 {[%clk 0:02:00]} 16. Bf3 {[%clk 0:02:37]}  Bf5 {[%clk 0:01:23]} 17. Nd5 {[%clk 0:02:27]}  Nxd5 {[%clk 0:01:12]} 18. Bxd5 {[%clk 0:02:28]}  Bb4 {[%clk 0:01:03]} 19. Bc3 {[%clk 0:02:22]}  Bxc3 {[%clk 0:01:02]} 20. bxc3 {[%clk 0:02:23]}  Qc7 {[%clk 0:00:49]} 21. Qf3 {[%clk 0:02:23]}  Bg6 {[%clk 0:00:45]} 22. h4 {[%clk 0:02:19]}  h6 {[%clk 0:00:37]} 23. h5 {[%clk 0:02:12]}  Bh7 {[%clk 0:00:36]} 24. Re3 {[%clk 0:02:11]}  Rad8 {[%clk 0:00:35]} 25. Rae1 {[%clk 0:02:08]}  b5 {[%clk 0:00:35]} 26. Re7 {[%clk 0:02:08]}  d2 {[%clk 0:00:30]} 27. R1e3 {[%clk 0:02:06]}  Qxc4 {[%clk 0:00:22]} 28. Qxf7+ {[%clk 0:01:48]}  Rxf7 {[%clk 0:00:17]} 29. Re8+ {[%clk 0:01:48]}  Rxe8 {[%clk 0:00:14]} 30. Rxe8# {[%clk 0:01:49]} 1-0

[Event "January 9 Late 2024"]
[Site "https://www.chess.com"]
[Date "2024.01.09"]
[Round "1"]
[White "Kaganskiy, Gleb"]
[Black "Koksal, Ege"]
[Result "0-1"]
[Board "189"]
[TimeControl "180+1"]
[WhiteFideId "4132025"]
[BlackFideId "6317626"]
[WhiteElo "2260"]
[BlackElo "2614"]
[WhiteTeam "ISR"]
[BlackTeam "TUR"]
[WhiteClock "0:00:00"]
[BlackClock "0:00:29"]

1. a3 {[%clk 0:02:57]}  e5 {[%clk 0:02:57]} 2. Nc3 {[%clk 0:02:56]}  d5 {[%clk 0:02:57]} 3. d4 {[%clk 0:02:56]}  e4 {[%clk 0:02:53]} 4. f3 {[%clk 0:02:56]}  Bd6 {[%clk 0:02:45]} 5. Nxd5 {[%clk 0:02:33]}  Bxh2 {[%clk 0:02:37]} 6. Rxh2 {[%clk 0:02:23]}  Qxd5 {[%clk 0:02:37]} 7. fxe4 {[%clk 0:02:17]}  Qxe4 {[%clk 0:02:37]} 8. Nf3 {[%clk 0:02:17]}  Nf6 {[%clk 0:02:36]} 9. e3 {[%clk 0:02:08]}  Bf5 {[%clk 0:02:29]} 10. Bd3 {[%clk 0:02:06]}  Qg4 {[%clk 0:02:28]} 11. Bxf5 {[%clk 0:01:38]}  Qxf5 {[%clk 0:02:28]} 12. Qd3 {[%clk 0:01:37]}  Qd5 {[%clk 0:02:04]} 13. c4 {[%clk 0:01:26]}  Qe6 {[%clk 0:02:04]} 14. Bd2 {[%clk 0:01:24]}  Nc6 {[%clk 0:01:56]} 15. O-O-O {[%clk 0:01:17]}  O-O-O {[%clk 0:01:54]} 16. Ng5 {[%clk 0:01:06]}  Qe7 {[%clk 0:01:45]} 17. d5 {[%clk 0:00:54]}  Ne5 {[%clk 0:01:43]} 18. Qf5+ {[%clk 0:00:53]}  Kb8 {[%clk 0:01:43]} 19. Rh4 {[%clk 0:00:47]}  h6 {[%clk 0:01:41]} 20. Nf3 {[%clk 0:00:45]}  Ng6 {[%clk 0:01:14]} 21. Rd4 {[%clk 0:00:41]}  Rhe8 {[%clk 0:01:13]} 22. Qd3 {[%clk 0:00:25]}  Ne5 {[%clk 0:01:04]} 23. Nxe5 {[%clk 0:00:23]}  Qxe5 {[%clk 0:01:05]} 24. Kb1 {[%clk 0:00:22]}  Qg3 {[%clk 0:00:59]} 25. c5 {[%clk 0:00:15]}  Qxg2 {[%clk 0:00:55]} 26. c6 {[%clk 0:00:13]}  Rxd5 {[%clk 0:00:52]} 27. Bc3 {[%clk 0:00:07]}  Rxd4 {[%clk 0:00:51]} 28. Bxd4 {[%clk 0:00:06]}  Qe4 {[%clk 0:00:51]} 29. Bxf6 {[%clk 0:00:05]}  Qxd3+ {[%clk 0:00:50]} 30. Rxd3 {[%clk 0:00:06]}  gxf6 {[%clk 0:00:51]} 31. Rd7 {[%clk 0:00:06]}  bxc6 {[%clk 0:00:38]} 32. Rxf7 {[%clk 0:00:06]}  Rh8 {[%clk 0:00:29]} 33. Rxf6 {[%clk 0:00:06]}  h5 {[%clk 0:00:30]} 34. Rf4 {[%clk 0:00:06]}  h4 {[%clk 0:00:30]} 35. Rf2 {[%clk 0:00:07]}  h3 {[%clk 0:00:31]} 36. Rh2 {[%clk 0:00:07]}  Kc8 {[%clk 0:00:31]} 37. Kc2 {[%clk 0:00:07]}  Kd7 {[%clk 0:00:31]} 38. Kd3 {[%clk 0:00:08]}  Ke6 {[%clk 0:00:32]} 39. Ke4 {[%clk 0:00:09]}  c5 {[%clk 0:00:32]} 40. Kf4 {[%clk 0:00:08]}  c4 {[%clk 0:00:33]} 41. Kg4 {[%clk 0:00:08]}  Ke5 {[%clk 0:00:33]} 42. Kf3 {[%clk 0:00:07]}  a5 {[%clk 0:00:30]} 43. a4 {[%clk 0:00:02]}  c5 {[%clk 0:00:30]} 44. Kf2 {[%clk 0:00:01]}  Ke4 {[%clk 0:00:30]} 45. Ke2 {[%clk 0:00:00]}  Rh5 {[%clk 0:00:29]} 0-1

[Event "January 9 Late 2024"]
[Site "https://www.chess.com"]
[Date "2024.01.09"]
[Round "1"]
[White "Kappeler, Kaspar"]
[Black "Poltorak, Sebastian"]
[Result "0-1"]
[Board "191"]
[TimeControl "180+1"]
[WhiteFideId "1309072"]
[BlackFideId "1199498"]
[WhiteElo "2257"]
[BlackElo "2613"]
[WhiteTeam "SUI"]
[BlackTeam "POL"]
[WhiteClock "0:00:34"]
[BlackClock "0:01:41"]

1. c4 {[%clk 0:02:59]}  Nf6 {[%clk 0:02:57]} 2. Nc3 {[%clk 0:02:58]}  d5 {[%clk 0:02:53]} 3. cxd5 {[%clk 0:02:57]}  Nxd5 {[%clk 0:02:54]} 4. Nf3 {[%clk 0:02:57]}  c5 {[%clk 0:02:54]} 5. g3 {[%clk 0:02:52]}  Nc6 {[%clk 0:02:54]} 6. Bg2 {[%clk 0:02:52]}  Nc7 {[%clk 0:02:55]} 7. O-O {[%clk 0:02:52]}  e5 {[%clk 0:02:55]} 8. d3 {[%clk 0:02:47]}  Be7 {[%clk 0:02:55]} 9. Nd2 {[%clk 0:02:47]}  Bd7 {[%clk 0:02:54]} 10. Nc4 {[%clk 0:02:46]}  f6 {[%clk 0:02:52]} 11. a3 {[%clk 0:02:43]}  O-O {[%clk 0:02:51]} 12. b4 {[%clk 0:02:36]}  cxb4 {[%clk 0:02:50]} 13. axb4 {[%clk 0:02:36]}  b5 {[%clk 0:02:42]} 14. Na5 {[%clk 0:02:32]}  Nxa5 {[%clk 0:02:37]} 15. Bxa8 {[%clk 0:02:30]}  Qxa8 {[%clk 0:02:37]} 16. bxa5 {[%clk 0:02:22]}  b4 {[%clk 0:02:37]} 17. Ne4 {[%clk 0:02:15]}  Bh3 {[%clk 0:02:30]} 18. Qb3+ {[%clk 0:02:03]}  Kh8 {[%clk 0:02:30]} 19. Be3 {[%clk 0:01:55]}  f5 {[%clk 0:02:25]} 20. Rfc1 {[%clk 0:01:46]}  Nd5 {[%clk 0:02:18]} 21. Bg5 {[%clk 0:01:15]}  fxe4 {[%clk 0:01:45]} 22. Bxe7 {[%clk 0:00:55]}  Nxe7 {[%clk 0:01:46]} 23. dxe4 {[%clk 0:00:49]}  Qxe4 {[%clk 0:01:45]} 24. f3 {[%clk 0:00:38]}  Qxe2 {[%clk 0:01:43]} 25. Ra2 {[%clk 0:00:38]}  Qxf3 {[%clk 0:01:40]} 26. Qxf3 {[%clk 0:00:38]}  Rxf3 {[%clk 0:01:41]} 27. Rc7 {[%clk 0:00:34]}  Rf1# {[%clk 0:01:41]} 0-1